[Event "Early-Titled-Tuesday-Blitz-March-19-2024"]
[Site "Chess.com"]
[Date "2024.03.19"]
[Round "6"]
[White "AccioChess"]
[Black "Kunalm64"]
[Result "1-0"]
[WhiteElo "2469"]
[BlackElo "2621"]
[TimeControl "180+1"]
[EndTime "9:08:07 PDT"]
[Termination "AccioChess won by resignation"]

1. e4 {[%clk 0:03:00.9]} 1... c6 {[%clk 0:03:00.2]} 2. Nc3 {[%clk 0:02:59.5]}
2... d5 {[%clk 0:03:00.6]} 3. Nf3 {[%clk 0:03:00]} 3... a6 {[%clk 0:02:57.2]} 4.
d4 {[%clk 0:02:54.3]} 4... Bg4 {[%clk 0:02:56.1]} 5. Be3 {[%clk 0:02:49.5]} 5...
e6 {[%clk 0:02:56.2]} 6. h3 {[%clk 0:02:48.8]} 6... Bh5 {[%clk 0:02:55.9]} 7.
Be2 {[%clk 0:02:47]} 7... Nf6 {[%clk 0:02:55.6]} 8. e5 {[%clk 0:02:46.5]} 8...
Nfd7 {[%clk 0:02:55.7]} 9. Nh2 {[%clk 0:02:33.4]} 9... Bxe2 {[%clk 0:02:54.5]}
10. Nxe2 {[%clk 0:02:34.3]} 10... c5 {[%clk 0:02:54.6]} 11. c3 {[%clk
0:02:34.1]} 11... Nc6 {[%clk 0:02:53.7]} 12. O-O {[%clk 0:02:34.1]} 12... cxd4
{[%clk 0:02:38.7]} 13. cxd4 {[%clk 0:02:35]} 13... Be7 {[%clk 0:02:34]} 14. f4
{[%clk 0:02:33.2]} 14... g6 {[%clk 0:02:34.2]} 15. Nf3 {[%clk 0:02:30.6]} 15...
h5 {[%clk 0:02:33.2]} 16. Rc1 {[%clk 0:02:03.5]} 16... Rc8 {[%clk 0:02:32.6]}
17. Nc3 {[%clk 0:01:50]} 17... Na5 {[%clk 0:02:30.4]} 18. Rc2 {[%clk 0:01:49.4]}
18... Nc4 {[%clk 0:02:30.2]} 19. Bc1 {[%clk 0:01:49.6]} 19... b5 {[%clk
0:02:30.3]} 20. b3 {[%clk 0:01:33.4]} 20... Na3 {[%clk 0:02:24.9]} 21. Bxa3
{[%clk 0:01:33.2]} 21... Bxa3 {[%clk 0:02:25.2]} 22. Ne2 {[%clk 0:01:17.2]}
22... Rxc2 {[%clk 0:02:21.3]} 23. Qxc2 {[%clk 0:01:18.1]} 23... O-O {[%clk
0:02:20]} 24. f5 {[%clk 0:01:10.6]} 24... exf5 {[%clk 0:02:16.1]} 25. Nf4 {[%clk
0:01:10.1]} 25... Nb6 {[%clk 0:01:20.9]} 26. Qc6 {[%clk 0:01:06.3]} 26... Qb8
{[%clk 0:01:13.2]} 27. Ng5 {[%clk 0:00:32]} 27... Qd8 {[%clk 0:00:53.8]} 28.
Nxf7 {[%clk 0:00:23.3]} 28... Rxf7 {[%clk 0:00:52.4]} 29. Qxg6+ {[%clk 0:00:23]}
29... Rg7 {[%clk 0:00:52.3]} 30. Qxg7+ {[%clk 0:00:22.8]} 30... Kxg7 {[%clk
0:00:52.4]} 31. Ne6+ {[%clk 0:00:23.7]} 31... Kf7 {[%clk 0:00:52.6]} 32. Nxd8+
{[%clk 0:00:24.6]} 32... Ke8 {[%clk 0:00:52.5]} 33. Ne6 {[%clk 0:00:23.5]} 33...
Ke7 {[%clk 0:00:45.9]} 34. Ng7 {[%clk 0:00:23.4]} 34... Bb2 {[%clk 0:00:40.1]}
35. Nxf5+ {[%clk 0:00:21.9]} 35... Kd7 {[%clk 0:00:40.4]} 36. g4 {[%clk
0:00:21.2]} 36... hxg4 {[%clk 0:00:40.3]} 37. hxg4 {[%clk 0:00:22.1]} 37... Nc8
{[%clk 0:00:35.3]} 38. Rf2 {[%clk 0:00:20.2]} 38... Bc3 {[%clk 0:00:35.2]} 39.
Rf3 {[%clk 0:00:18.4]} 39... b4 {[%clk 0:00:35]} 40. Rd3 {[%clk 0:00:16.5]}
40... Ke6 {[%clk 0:00:30.5]} 41. Kg2 {[%clk 0:00:16.1]} 41... Na7 {[%clk
0:00:30]} 42. Kf3 {[%clk 0:00:15.2]} 42... Nc6 {[%clk 0:00:30.3]} 43. Kf4 {[%clk
0:00:15.3]} 43... a5 {[%clk 0:00:30.3]} 44. g5 {[%clk 0:00:15.3]} 44... Kf7
{[%clk 0:00:26.5]} 45. Nd6+ {[%clk 0:00:13.1]} 45... Kg6 {[%clk 0:00:25.2]} 46.
Nf5 {[%clk 0:00:12.3]} 46... Kf7 {[%clk 0:00:23.8]} 47. Kg4 {[%clk 0:00:12.7]}
47... Nd8 {[%clk 0:00:22.3]} 48. Ne3 {[%clk 0:00:10.3]} 48... Ne6 {[%clk
0:00:20]} 49. Nxd5 {[%clk 0:00:10.6]} 49... Bxd4 {[%clk 0:00:20.1]} 50. Kf5
{[%clk 0:00:11]} 50... Ng7+ {[%clk 0:00:15.1]} 51. Ke4 {[%clk 0:00:11.2]} 51...
Bb2 {[%clk 0:00:15.2]} 52. Nf4 {[%clk 0:00:11.1]} 52... Ke7 {[%clk 0:00:14.1]}
53. Rd6 {[%clk 0:00:10.9]} 53... Ne8 {[%clk 0:00:08.7]} 54. Ra6 {[%clk
0:00:10.9]} 54... a4 {[%clk 0:00:05.3]} 55. Rxa4 {[%clk 0:00:10.8]} 55... Bc3
{[%clk 0:00:05.1]} 56. Ra7+ {[%clk 0:00:10.8]} 56... Kf8 {[%clk 0:00:05.3]} 57.
Nd5 {[%clk 0:00:11.1]} 57... Kg8 {[%clk 0:00:03.7]} 58. g6 {[%clk 0:00:11]}
58... Kf8 {[%clk 0:00:02.8]} 59. Nf6 {[%clk 0:00:10.8]} 59... Nxf6+ {[%clk
0:00:02.5]} 60. exf6 {[%clk 0:00:10.8]} 60... Bxf6 {[%clk 0:00:01.4]} 61. Rf7+
{[%clk 0:00:11]} 61... Kg8 {[%clk 0:00:02]} 62. Rxf6 {[%clk 0:00:11.9]} 1-0

[Event "Early-Titled-Tuesday-Blitz-March-19-2024"]
[Site "Chess.com"]
[Date "2024.03.19"]
[Round "6"]
[White "ExtremeLearner"]
[Black "hell3raiser"]
[Result "1-0"]
[WhiteElo "2568"]
[BlackElo "2371"]
[TimeControl "180+1"]
[EndTime "9:08:08 PDT"]
[Termination "ExtremeLearner won on time"]

1. d4 {[%clk 0:03:00.9]} 1... d5 {[%clk 0:02:59.2]} 2. c4 {[%clk 0:03:01.4]}
2... e6 {[%clk 0:02:58.7]} 3. Nc3 {[%clk 0:03:01.6]} 3... Be7 {[%clk 0:02:58.7]}
4. Nf3 {[%clk 0:03:00.5]} 4... Nf6 {[%clk 0:02:58.5]} 5. cxd5 {[%clk 0:03:00.5]}
5... exd5 {[%clk 0:02:58.4]} 6. h3 {[%clk 0:03:00.4]} 6... O-O {[%clk
0:02:57.9]} 7. Bf4 {[%clk 0:03:00.3]} 7... c6 {[%clk 0:02:49.1]} 8. e3 {[%clk
0:03:00.3]} 8... Bf5 {[%clk 0:02:49.3]} 9. Nh4 {[%clk 0:02:58.5]} 9... Bg6
{[%clk 0:02:42.7]} 10. Nxg6 {[%clk 0:02:56.4]} 10... hxg6 {[%clk 0:02:43.6]} 11.
Be2 {[%clk 0:02:55.4]} 11... Nbd7 {[%clk 0:02:40.2]} 12. h4 {[%clk 0:02:54.4]}
12... Ne4 {[%clk 0:02:33.2]} 13. Nxe4 {[%clk 0:02:32.6]} 13... dxe4 {[%clk
0:02:34.1]} 14. h5 {[%clk 0:02:29.5]} 14... g5 {[%clk 0:02:34.2]} 15. Bg3 {[%clk
0:02:26.2]} 15... Kh7 {[%clk 0:02:28.4]} 16. f4 {[%clk 0:02:17.6]} 16... f5
{[%clk 0:02:26.1]} 17. Qb3 {[%clk 0:02:06.4]} 17... Nb6 {[%clk 0:02:12.4]} 18.
Qe6 {[%clk 0:01:53.2]} 18... Rf6 {[%clk 0:02:08.9]} 19. Qb3 {[%clk 0:01:49.3]}
19... g4 {[%clk 0:02:05.4]} 20. Kf2 {[%clk 0:01:45.4]} 20... Nd5 {[%clk
0:02:04.7]} 21. Bc4 {[%clk 0:01:44.4]} 21... Rd6 {[%clk 0:01:42.4]} 22. Rac1
{[%clk 0:01:42.2]} 22... Qa5 {[%clk 0:01:29]} 23. Rc2 {[%clk 0:01:27.1]} 23...
b5 {[%clk 0:01:22.6]} 24. Bxd5 {[%clk 0:01:20.2]} 24... Rxd5 {[%clk 0:01:23.5]}
25. Rxc6 {[%clk 0:01:15.1]} 25... Qd2+ {[%clk 0:01:22.9]} 26. Kg1 {[%clk
0:01:15.1]} 26... Rad8 {[%clk 0:01:04]} 27. Rc2 {[%clk 0:01:08.8]} 27... Qa5
{[%clk 0:00:56.2]} 28. Kh2 {[%clk 0:00:56.8]} 28... Bf6 {[%clk 0:00:56.1]} 29.
Rhc1 {[%clk 0:00:47.9]} 29... R8d7 {[%clk 0:00:46.4]} 30. a3 {[%clk 0:00:43.4]}
30... g6 {[%clk 0:00:46.3]} 31. hxg6+ {[%clk 0:00:37.5]} 31... Kxg6 {[%clk
0:00:47.2]} 32. Kg1 {[%clk 0:00:35.8]} 32... Qd8 {[%clk 0:00:43.8]} 33. Rc6
{[%clk 0:00:34.6]} 33... a5 {[%clk 0:00:36.5]} 34. Bh4 {[%clk 0:00:33.9]} 34...
R7d6 {[%clk 0:00:33.8]} 35. Bxf6 {[%clk 0:00:31.6]} 35... Qxf6 {[%clk
0:00:20.2]} 36. Qxd5 {[%clk 0:00:29.4]} 36... Rxd5 {[%clk 0:00:20.7]} 37. Rxf6+
{[%clk 0:00:29.5]} 37... Kxf6 {[%clk 0:00:21.6]} 38. Rc6+ {[%clk 0:00:29.1]}
38... Kg7 {[%clk 0:00:20.2]} 39. Ra6 {[%clk 0:00:25.8]} 39... a4 {[%clk
0:00:18.7]} 40. Rb6 {[%clk 0:00:26.4]} 40... Kf7 {[%clk 0:00:16.5]} 41. Kf2
{[%clk 0:00:26.7]} 41... Ke7 {[%clk 0:00:15.8]} 42. Kg3 {[%clk 0:00:27.3]} 42...
Kd7 {[%clk 0:00:16]} 43. Kh4 {[%clk 0:00:27]} 43... Kc7 {[%clk 0:00:16.1]} 44.
Rf6 {[%clk 0:00:26.8]} 44... Rd8 {[%clk 0:00:13.4]} 45. Rxf5 {[%clk 0:00:25.5]}
45... Kb6 {[%clk 0:00:14]} 46. Re5 {[%clk 0:00:23.2]} 46... Rg8 {[%clk
0:00:12.9]} 47. Rxe4 {[%clk 0:00:22.6]} 47... g3 {[%clk 0:00:10.1]} 48. Re6+
{[%clk 0:00:22.4]} 48... Ka5 {[%clk 0:00:10.3]} 49. d5 {[%clk 0:00:22.4]} 49...
Rd8 {[%clk 0:00:07.7]} 50. e4 {[%clk 0:00:20.1]} 50... Rf8 {[%clk 0:00:06.4]}
51. Kxg3 {[%clk 0:00:19.3]} 51... b4 {[%clk 0:00:05.2]} 52. axb4+ {[%clk
0:00:18.5]} 52... Kxb4 {[%clk 0:00:06.1]} 53. d6 {[%clk 0:00:18.9]} 53... Kb3
{[%clk 0:00:06.1]} 54. d7 {[%clk 0:00:19.2]} 54... Rd8 {[%clk 0:00:05.7]} 55.
Rb6+ {[%clk 0:00:18]} 55... Kc2 {[%clk 0:00:05.2]} 56. Rb7 {[%clk 0:00:18.4]}
56... Kd3 {[%clk 0:00:04.8]} 57. e5 {[%clk 0:00:18.4]} 57... Ke4 {[%clk
0:00:05.3]} 58. e6 {[%clk 0:00:18.7]} 58... Rg8+ {[%clk 0:00:05.5]} 59. Kf2
{[%clk 0:00:19.1]} 1-0

[Event "Early-Titled-Tuesday-Blitz-March-19-2024"]
[Site "Chess.com"]
[Date "2024.03.19"]
[Round "6"]
[White "vi_pranav"]
[Black "rezamahdavi2008"]
[Result "1-0"]
[WhiteElo "3052"]
[BlackElo "2854"]
[TimeControl "180+1"]
[EndTime "9:08:10 PDT"]
[Termination "vi_pranav won on time"]

1. e4 {[%clk 0:02:59.4]} 1... c5 {[%clk 0:02:59.9]} 2. Nf3 {[%clk 0:02:58.2]}
2... d6 {[%clk 0:03:00.4]} 3. d4 {[%clk 0:02:58.4]} 3... cxd4 {[%clk 0:03:01.3]}
4. Nxd4 {[%clk 0:02:59.1]} 4... Nf6 {[%clk 0:03:02]} 5. Nc3 {[%clk 0:02:59.8]}
5... a6 {[%clk 0:03:02.7]} 6. h3 {[%clk 0:02:59.9]} 6... e5 {[%clk 0:02:55.8]}
7. Nf3 {[%clk 0:02:59.9]} 7... Be7 {[%clk 0:02:51.2]} 8. g4 {[%clk 0:02:59.7]}
8... h6 {[%clk 0:02:50.9]} 9. Rg1 {[%clk 0:02:59.4]} 9... b5 {[%clk 0:02:50.6]}
10. g5 {[%clk 0:02:57.5]} 10... hxg5 {[%clk 0:02:51.5]} 11. Nxg5 {[%clk
0:02:58.2]} 11... Bb7 {[%clk 0:02:52.1]} 12. a4 {[%clk 0:02:53.7]} 12... b4
{[%clk 0:02:52.3]} 13. Nd5 {[%clk 0:02:44.7]} 13... Nxd5 {[%clk 0:02:37.1]} 14.
exd5 {[%clk 0:02:45.6]} 14... Nd7 {[%clk 0:02:37.9]} 15. Bc4 {[%clk 0:01:57.7]}
15... Qc7 {[%clk 0:02:33.7]} 16. Bb3 {[%clk 0:01:49.9]} 16... Nf6 {[%clk
0:02:31.7]} 17. Be3 {[%clk 0:01:43.2]} 17... a5 {[%clk 0:02:24.6]} 18. Qd3
{[%clk 0:01:42.7]} 18... Ba6 {[%clk 0:02:23.8]} 19. Qd1 {[%clk 0:01:32.1]} 19...
Rh4 {[%clk 0:02:17.7]} 20. Qf3 {[%clk 0:01:29.4]} 20... Bc4 {[%clk 0:01:41.6]}
21. Qg3 {[%clk 0:01:25.5]} 21... Rh5 {[%clk 0:01:42]} 22. Rd1 {[%clk 0:01:18.1]}
22... Bxb3 {[%clk 0:01:37.2]} 23. cxb3 {[%clk 0:01:19]} 23... Qc2 {[%clk
0:01:37.3]} 24. Qf3 {[%clk 0:01:03.2]} 24... g6 {[%clk 0:01:19.4]} 25. Bd2
{[%clk 0:00:39.3]} 25... Rc8 {[%clk 0:01:08.5]} 26. Rg3 {[%clk 0:00:25.3]} 26...
Rh4 {[%clk 0:01:06.7]} 27. Rc1 {[%clk 0:00:18.7]} 27... Qxc1+ {[%clk 0:01:00.4]}
28. Bxc1 {[%clk 0:00:19.6]} 28... Rxc1+ {[%clk 0:01:00.9]} 29. Kd2 {[%clk
0:00:19.7]} 29... Rc5 {[%clk 0:01:01.6]} 30. Qe2 {[%clk 0:00:16.1]} 30... Rd4+
{[%clk 0:00:58.4]} 31. Rd3 {[%clk 0:00:13.3]} 31... Rxd3+ {[%clk 0:00:55.1]} 32.
Kxd3 {[%clk 0:00:13.7]} 32... Nxd5 {[%clk 0:00:55.8]} 33. Qg4 {[%clk 0:00:14.2]}
33... Nf4+ {[%clk 0:00:54.7]} 34. Kd2 {[%clk 0:00:12.4]} 34... Rd5+ {[%clk
0:00:52.5]} 35. Kc2 {[%clk 0:00:12.2]} 35... Rc5+ {[%clk 0:00:48.1]} 36. Kb1
{[%clk 0:00:11.5]} 36... f5 {[%clk 0:00:34]} 37. Qh4 {[%clk 0:00:07.8]} 37...
Nh5 {[%clk 0:00:34.1]} 38. f3 {[%clk 0:00:03.7]} 38... Kd7 {[%clk 0:00:33.6]}
39. Ka2 {[%clk 0:00:02.1]} 39... d5 {[%clk 0:00:32.3]} 40. f4 {[%clk 0:00:02.1]}
40... Nxf4 {[%clk 0:00:23.1]} 41. Qh7 {[%clk 0:00:02]} 41... d4 {[%clk
0:00:23.6]} 42. Nf7 {[%clk 0:00:01.7]} 42... d3 {[%clk 0:00:23.3]} 43. Qg7
{[%clk 0:00:02.1]} 43... Ke6 {[%clk 0:00:23.7]} 44. Qg8 {[%clk 0:00:02]} 44...
Kf6 {[%clk 0:00:21.6]} 45. Nh6 {[%clk 0:00:02.1]} 45... Rc7 {[%clk 0:00:12.1]}
46. Qf7+ {[%clk 0:00:02.5]} 46... Kg5 {[%clk 0:00:12.7]} 47. Qg7 {[%clk
0:00:02.8]} 47... Bd6 {[%clk 0:00:06.1]} 48. h4+ {[%clk 0:00:03.3]} 48... Kh5
{[%clk 0:00:04.3]} 49. Qf6 {[%clk 0:00:03.9]} 49... Kxh6 {[%clk 0:00:04.2]} 50.
Qxd6 {[%clk 0:00:03.6]} 50... Rc2 {[%clk 0:00:03.6]} 51. Qxe5 {[%clk 0:00:03.5]}
1-0

[Event "Early-Titled-Tuesday-Blitz-March-19-2024"]
[Site "Chess.com"]
[Date "2024.03.19"]
[Round "6"]
[White "Josetricks"]
[Black "Akylbek2021"]
[Result "1-0"]
[WhiteElo "2548"]
[BlackElo "2330"]
[TimeControl "180+1"]
[EndTime "9:08:11 PDT"]
[Termination "Josetricks won by resignation"]

1. e4 {[%clk 0:03:00]} 1... e6 {[%clk 0:02:57.5]} 2. Nf3 {[%clk 0:02:59.8]} 2...
d5 {[%clk 0:02:57.6]} 3. Nc3 {[%clk 0:03:00.4]} 3... Nf6 {[%clk 0:02:56.2]} 4.
e5 {[%clk 0:02:59.7]} 4... Nfd7 {[%clk 0:02:56]} 5. d4 {[%clk 0:03:00.3]} 5...
c5 {[%clk 0:02:56.4]} 6. dxc5 {[%clk 0:03:01.2]} 6... Nxc5 {[%clk 0:02:55.4]} 7.
Bd3 {[%clk 0:02:59.3]} 7... Nc6 {[%clk 0:02:55.8]} 8. Bf4 {[%clk 0:02:58.8]}
8... Nxd3+ {[%clk 0:02:55.7]} 9. cxd3 {[%clk 0:02:58]} 9... Be7 {[%clk
0:02:51.4]} 10. h4 {[%clk 0:02:57.5]} 10... h6 {[%clk 0:02:49.2]} 11. h5 {[%clk
0:02:56.7]} 11... a6 {[%clk 0:02:47.9]} 12. Kf1 {[%clk 0:02:55.8]} 12... b5
{[%clk 0:02:47.8]} 13. Rh3 {[%clk 0:02:54.9]} 13... Bb7 {[%clk 0:02:32.2]} 14.
Rg3 {[%clk 0:02:54.6]} 14... Kf8 {[%clk 0:02:31.5]} 15. Kg1 {[%clk 0:02:51.7]}
15... b4 {[%clk 0:02:28.6]} 16. Ne2 {[%clk 0:02:51.4]} 16... Qb6 {[%clk
0:02:16.1]} 17. Be3 {[%clk 0:02:30.1]} 17... Bc5 {[%clk 0:02:08]} 18. d4 {[%clk
0:02:28.7]} 18... Be7 {[%clk 0:02:06.7]} 19. Nf4 {[%clk 0:02:28.9]} 19... Na5
{[%clk 0:01:52.3]} 20. Nd2 {[%clk 0:02:26.3]} 20... Rc8 {[%clk 0:01:51.4]} 21.
Qg4 {[%clk 0:02:25.6]} 21... Rg8 {[%clk 0:01:49.5]} 22. Ne2 {[%clk 0:01:57.2]}
22... b3 {[%clk 0:01:35.6]} 23. Bxh6 {[%clk 0:01:54.1]} 23... bxa2 {[%clk
0:01:24.1]} 24. Bxg7+ {[%clk 0:01:53.4]} 24... Ke8 {[%clk 0:01:24.8]} 25. Rxa2
{[%clk 0:01:52.7]} 25... Rc2 {[%clk 0:01:21.6]} 26. h6 {[%clk 0:01:46.7]} 26...
Kd7 {[%clk 0:01:06.3]} 27. h7 {[%clk 0:01:44.1]} 27... Rgc8 {[%clk 0:01:06.2]}
28. Qf4 {[%clk 0:01:29.4]} 28... Bb4 {[%clk 0:00:56]} 29. Qxf7+ {[%clk 0:01:25]}
29... Kc6 {[%clk 0:00:54]} 30. Qxe6+ {[%clk 0:01:22.6]} 30... Kb5 {[%clk
0:00:47]} 31. Qxb6+ {[%clk 0:01:20.3]} 31... Kxb6 {[%clk 0:00:46.8]} 32. h8=Q
{[%clk 0:01:15.5]} 32... Rxh8 {[%clk 0:00:46.3]} 33. Bxh8 {[%clk 0:01:16.4]}
33... Rxd2 {[%clk 0:00:46.1]} 34. Nc3 {[%clk 0:01:02.9]} 34... Nc4 {[%clk
0:00:30.6]} 35. Ra4 {[%clk 0:00:38.9]} 35... Rxb2 {[%clk 0:00:26.3]} 36. e6
{[%clk 0:00:34.5]} 36... a5 {[%clk 0:00:24.6]} 37. Bf6 {[%clk 0:00:20.3]} 37...
Bc6 {[%clk 0:00:19.8]} 38. Ra1 {[%clk 0:00:16.6]} 38... Rc2 {[%clk 0:00:15.9]}
39. Na4+ {[%clk 0:00:13.5]} 39... Kb5 {[%clk 0:00:14.5]} 40. e7 {[%clk
0:00:12.2]} 40... Re2 {[%clk 0:00:07.8]} 41. Nc5 {[%clk 0:00:12.3]} 41... Bxc5
{[%clk 0:00:04.6]} 42. dxc5 {[%clk 0:00:13.2]} 42... Kxc5 {[%clk 0:00:05.4]} 43.
Kf1 {[%clk 0:00:10]} 43... Re6 {[%clk 0:00:05.2]} 44. Bg5 {[%clk 0:00:07.2]}
44... a4 {[%clk 0:00:05.5]} 45. Re1 {[%clk 0:00:06.9]} 45... Rxe1+ {[%clk
0:00:03.4]} 46. Kxe1 {[%clk 0:00:07.8]} 46... a3 {[%clk 0:00:04]} 47. e8=Q
{[%clk 0:00:04.8]} 47... Bxe8 {[%clk 0:00:03.7]} 48. Be7+ {[%clk 0:00:05.4]}
48... Kb5 {[%clk 0:00:03.3]} 49. Bxa3 {[%clk 0:00:05.8]} 49... d4 {[%clk
0:00:02.9]} 50. Bc1 {[%clk 0:00:05.2]} 50... Bc6 {[%clk 0:00:01.8]} 51. Bd2
{[%clk 0:00:05]} 51... Kc5 {[%clk 0:00:02.1]} 52. Rg5+ {[%clk 0:00:05.1]} 52...
Kb6 {[%clk 0:00:01.6]} 53. f4 {[%clk 0:00:05.4]} 53... Nd6 {[%clk 0:00:01.9]}
54. Rg6 {[%clk 0:00:04.5]} 54... Be4 {[%clk 0:00:02.6]} 55. Rxd6+ {[%clk
0:00:04.2]} 55... Kc5 {[%clk 0:00:03.2]} 56. Re6 {[%clk 0:00:04.3]} 56... Bd5
{[%clk 0:00:03.4]} 57. Re5 {[%clk 0:00:04.6]} 57... Kd6 {[%clk 0:00:03.4]} 58.
Rxd5+ {[%clk 0:00:05.5]} 58... Kxd5 {[%clk 0:00:04.3]} 59. Ke2 {[%clk
0:00:06.4]} 59... Ke4 {[%clk 0:00:04.8]} 60. g3 {[%clk 0:00:06.6]} 60... Kf5
{[%clk 0:00:05.3]} 61. Kd3 {[%clk 0:00:07.5]} 61... Kg4 {[%clk 0:00:06]} 62.
Kxd4 {[%clk 0:00:08]} 62... Kxg3 {[%clk 0:00:06.7]} 63. f5 {[%clk 0:00:08.6]}
63... Kg4 {[%clk 0:00:07.4]} 64. f6 {[%clk 0:00:09.5]} 1-0

[Event "Early-Titled-Tuesday-Blitz-March-19-2024"]
[Site "Chess.com"]
[Date "2024.03.19"]
[Round "6"]
[White "RoelandPruijssers"]
[Black "Antipov_Mikhail_Al"]
[Result "1-0"]
[WhiteElo "2717"]
[BlackElo "2900"]
[TimeControl "180+1"]
[EndTime "9:08:12 PDT"]
[Termination "RoelandPruijssers won on time"]

1. e4 {[%clk 0:01:50.4]} 1... c5 {[%clk 0:02:55.5]} 2. Nf3 {[%clk 0:01:50.3]}
2... e6 {[%clk 0:02:54.8]} 3. d4 {[%clk 0:01:50.7]} 3... cxd4 {[%clk 0:02:55.7]}
4. Nxd4 {[%clk 0:01:50.9]} 4... a6 {[%clk 0:02:56.4]} 5. Bd3 {[%clk 0:01:50.7]}
5... Bc5 {[%clk 0:02:54.6]} 6. Nb3 {[%clk 0:01:51.2]} 6... Ba7 {[%clk
0:02:54.7]} 7. O-O {[%clk 0:01:51.7]} 7... Qc7 {[%clk 0:02:54.3]} 8. Qg4 {[%clk
0:01:49.5]} 8... Kf8 {[%clk 0:02:43.9]} 9. Qe2 {[%clk 0:01:48.9]} 9... Ne7
{[%clk 0:02:41.3]} 10. c4 {[%clk 0:01:46.8]} 10... Ng6 {[%clk 0:02:32.9]} 11.
Nc3 {[%clk 0:01:37.9]} 11... Nc6 {[%clk 0:02:30.8]} 12. Rd1 {[%clk 0:01:33.3]}
12... h5 {[%clk 0:02:14.1]} 13. g3 {[%clk 0:01:23.4]} 13... h4 {[%clk
0:02:08.8]} 14. Be3 {[%clk 0:01:24]} 14... Bxe3 {[%clk 0:02:02.2]} 15. Qxe3
{[%clk 0:01:23.8]} 15... Nce5 {[%clk 0:02:00.7]} 16. Rac1 {[%clk 0:00:58.8]}
16... Ng4 {[%clk 0:01:40.5]} 17. Qc5+ {[%clk 0:00:58.4]} 17... Qxc5 {[%clk
0:01:38.4]} 18. Nxc5 {[%clk 0:00:59.3]} 18... Ke7 {[%clk 0:01:24]} 19. Be2
{[%clk 0:00:56.9]} 19... Nf6 {[%clk 0:01:15.5]} 20. N5a4 {[%clk 0:00:47.9]}
20... d6 {[%clk 0:01:06.5]} 21. Nb6 {[%clk 0:00:47.6]} 21... Rb8 {[%clk
0:01:06.8]} 22. Rd2 {[%clk 0:00:43.2]} 22... Nd7 {[%clk 0:01:02.5]} 23. Nxc8+
{[%clk 0:00:39.5]} 23... Rhxc8 {[%clk 0:00:58.3]} 24. Rcd1 {[%clk 0:00:40.4]}
24... Rc6 {[%clk 0:00:53.3]} 25. Kg2 {[%clk 0:00:25.6]} 25... hxg3 {[%clk
0:00:50]} 26. hxg3 {[%clk 0:00:25.4]} 26... Nde5 {[%clk 0:00:50]} 27. Rd4 {[%clk
0:00:25.2]} 27... Rbc8 {[%clk 0:00:34.5]} 28. f4 {[%clk 0:00:25.2]} 28... Nxc4
{[%clk 0:00:29.6]} 29. Bxc4 {[%clk 0:00:25.8]} 29... Rxc4 {[%clk 0:00:30.5]} 30.
Rxd6 {[%clk 0:00:26.4]} 30... R8c7 {[%clk 0:00:26.8]} 31. e5 {[%clk 0:00:24.7]}
31... Nf8 {[%clk 0:00:23]} 32. R6d4 {[%clk 0:00:20.7]} 32... Nd7 {[%clk
0:00:20]} 33. Kf3 {[%clk 0:00:20.1]} 33... Nb6 {[%clk 0:00:16.4]} 34. Rd6 {[%clk
0:00:19.9]} 34... R4c6 {[%clk 0:00:13.2]} 35. Rxc6 {[%clk 0:00:19.6]} 35... Rxc6
{[%clk 0:00:13.4]} 36. Ne4 {[%clk 0:00:18.7]} 36... Nd5 {[%clk 0:00:06.9]} 37.
Rd2 {[%clk 0:00:17]} 37... b5 {[%clk 0:00:06.6]} 38. b3 {[%clk 0:00:16.5]} 38...
b4 {[%clk 0:00:05.2]} 39. Ke2 {[%clk 0:00:16.6]} 39... a5 {[%clk 0:00:04.4]} 40.
Kd3 {[%clk 0:00:15.9]} 40... Rc1 {[%clk 0:00:03]} 41. Rc2 {[%clk 0:00:15.8]}
41... Rd1+ {[%clk 0:00:03.3]} 42. Ke2 {[%clk 0:00:15.9]} 42... Rh1 {[%clk
0:00:03]} 43. Kf3 {[%clk 0:00:15.9]} 43... Re1 {[%clk 0:00:03]} 44. Rc4 {[%clk
0:00:15.3]} 44... Re3+ {[%clk 0:00:02.4]} 45. Kf2 {[%clk 0:00:15.8]} 45... Rd3
{[%clk 0:00:02.1]} 46. Nd6 {[%clk 0:00:16.1]} 46... Rd2+ {[%clk 0:00:02.2]} 47.
Kf3 {[%clk 0:00:16.7]} 47... Rxa2 {[%clk 0:00:03.1]} 48. Rc5 {[%clk 0:00:17.1]}
48... Ra3 {[%clk 0:00:02.5]} 49. Rb5 {[%clk 0:00:16.8]} 49... Rxb3+ {[%clk
0:00:02.7]} 50. Kf2 {[%clk 0:00:15.6]} 50... Kd7 {[%clk 0:00:01.9]} 51. Rxa5
{[%clk 0:00:13.4]} 51... Rc3 {[%clk 0:00:01.7]} 52. Nxf7 {[%clk 0:00:11.1]}
52... b3 {[%clk 0:00:02]} 53. Rb5 {[%clk 0:00:11.6]} 53... Rc2+ {[%clk
0:00:01.9]} 54. Kf3 {[%clk 0:00:11.1]} 54... Rc3+ {[%clk 0:00:02.4]} 55. Kg4
{[%clk 0:00:09.6]} 55... Kc6 {[%clk 0:00:03.3]} 56. Nd6 {[%clk 0:00:09.2]} 56...
Rd3 {[%clk 0:00:02.6]} 57. Rb8 {[%clk 0:00:08.5]} 57... Ne7 {[%clk 0:00:02.8]}
58. Kh4 {[%clk 0:00:07.5]} 58... g6 {[%clk 0:00:02.5]} 59. Kg5 {[%clk 0:00:07]}
59... Rxg3+ {[%clk 0:00:02.4]} 60. Kf6 {[%clk 0:00:07.3]} 60... Nd5+ {[%clk
0:00:03.2]} 61. Kxe6 {[%clk 0:00:07.3]} 61... Nxf4+ {[%clk 0:00:03.9]} 62. Kf6
{[%clk 0:00:07]} 62... Nd5+ {[%clk 0:00:03.5]} 63. Ke6 {[%clk 0:00:07]} 63...
Re3 {[%clk 0:00:02.5]} 64. Nc4 {[%clk 0:00:05.8]} 64... Rc3 {[%clk 0:00:01.9]}
65. Na5+ {[%clk 0:00:05.9]} 1-0